[Event "Live Chess"]
[Site "Chess.com"]
[Date "2023.05.21"]
[Round "-"]
[White "Missedidea"]
[Black "manthanit"]
[Result "1/2-1/2"]
[WhiteElo "1773"]
[BlackElo "1120"]
[TimeControl "300"]
[EndTime "9:00:33 PDT"]
[Termination "Game drawn by repetition"]

1. d4 {[%clk 0:04:58.8]} 1... e6 {[%clk 0:04:58.6]} 2. c4 {[%clk 0:04:56.5]}
2... d5 {[%clk 0:04:57.8]} 3. Nc3 {[%clk 0:04:54.4]} 3... c5 {[%clk 0:04:56.4]}
4. Nf3 {[%clk 0:04:51.8]} 4... Nf6 {[%clk 0:04:53.6]} 5. cxd5 {[%clk 0:04:50.3]}
5... Nxd5 {[%clk 0:04:51.2]} 6. e4 {[%clk 0:04:45.6]} 6... Nxc3 {[%clk
0:04:48.8]} 7. bxc3 {[%clk 0:04:44.7]} 7... cxd4 {[%clk 0:04:47.5]} 8. cxd4
{[%clk 0:04:42.8]} 8... Bb4+ {[%clk 0:04:44.5]} 9. Bd2 {[%clk 0:04:41.6]} 9...
Qb6 {[%clk 0:04:39.1]} 10. Bd3 {[%clk 0:04:34.9]} 10... Bxd2+ {[%clk 0:04:37.4]}
11. Qxd2 {[%clk 0:04:33.2]} 11... O-O {[%clk 0:04:32.9]} 12. O-O {[%clk
0:04:31.1]} 12... Qd8 {[%clk 0:04:26]} 13. Rfd1 {[%clk 0:04:26.1]} 13... b6
{[%clk 0:04:24]} 14. Qe2 {[%clk 0:04:21.8]} 14... a5 {[%clk 0:04:20.8]} 15. d5
{[%clk 0:04:17.3]} 15... exd5 {[%clk 0:04:17.1]} 16. exd5 {[%clk 0:04:16]} 16...
Ba6 {[%clk 0:04:15.4]} 17. Bxa6 {[%clk 0:04:08.9]} 17... Nxa6 {[%clk 0:04:13.8]}
18. d6 {[%clk 0:04:07.8]} 18... Nc5 {[%clk 0:04:12.9]} 19. Rab1 {[%clk
0:03:50.6]} 19... Ra7 {[%clk 0:04:11.1]} 20. Qb5 {[%clk 0:03:42.9]} 20... Ne4
{[%clk 0:04:02.9]} 21. Rbc1 {[%clk 0:03:35]} 21... Re8 {[%clk 0:03:42.6]} 22.
Qc6 {[%clk 0:03:11.6]} 22... Nc5 {[%clk 0:03:21.9]} 23. h4 {[%clk 0:03:00.7]}
23... Re6 {[%clk 0:03:20.2]} 24. Ng5 {[%clk 0:02:56.4]} 24... Rf6 {[%clk
0:03:15.4]} 25. Rb1 {[%clk 0:02:30.8]} 25... h6 {[%clk 0:03:12]} 26. Nf3 {[%clk
0:02:08.3]} 26... Ne4 {[%clk 0:03:05]} 27. Qxe4 {[%clk 0:02:05.5]} 27... Rxd6
{[%clk 0:03:02.2]} 28. Rxd6 {[%clk 0:01:59.7]} 28... Qxd6 {[%clk 0:03:01.2]} 29.
Qe8+ {[%clk 0:01:53.9]} 29... Kh7 {[%clk 0:02:59.8]} 30. Qe3 {[%clk 0:01:42.1]}
30... Rb7 {[%clk 0:02:31.6]} 31. Qe4+ {[%clk 0:01:38.4]} 31... Qg6 {[%clk
0:02:22.7]} 32. Qxb7 {[%clk 0:01:35.9]} 32... Qxb1+ {[%clk 0:02:21.2]} 33. Kh2
{[%clk 0:01:32.1]} 33... Qxa2 {[%clk 0:02:20]} 34. Qxb6 {[%clk 0:01:27]} 34...
a4 {[%clk 0:02:16.9]} 35. Qb4 {[%clk 0:01:19.2]} 35... Qb3 {[%clk 0:02:14.2]}
36. Qe4+ {[%clk 0:01:17.4]} 36... g6 {[%clk 0:02:10.2]} 37. h5 {[%clk
0:01:16.3]} 37... Qb8+ {[%clk 0:02:06.4]} 38. Kg1 {[%clk 0:01:12]} 38... a3
{[%clk 0:02:00.3]} 39. hxg6+ {[%clk 0:01:10.1]} 39... fxg6 {[%clk 0:01:59.6]}
40. Qe7+ {[%clk 0:01:08.4]} 40... Kg8 {[%clk 0:01:56.4]} 41. Ne5 {[%clk
0:01:06.5]} 41... Qf8 {[%clk 0:01:38.9]} 42. Qe6+ {[%clk 0:01:04.2]} 42... Kh7
{[%clk 0:01:30.1]} 43. Nxg6 {[%clk 0:00:57]} 43... Qg7 {[%clk 0:01:08.6]} 44.
Nh4 {[%clk 0:00:47.6]} 44... Qa1+ {[%clk 0:01:03.1]} 45. Kh2 {[%clk 0:00:44.4]}
45... a2 {[%clk 0:00:50.9]} 46. Qg6+ {[%clk 0:00:38.3]} 46... Kh8 {[%clk
0:00:47.4]} 47. Qxh6+ {[%clk 0:00:25.2]} 47... Kg8 {[%clk 0:00:45.6]} 48. Qg6+
{[%clk 0:00:22.4]} 48... Qg7 {[%clk 0:00:43.8]} 49. Qe6+ {[%clk 0:00:18.5]}
49... Qf7 {[%clk 0:00:42]} 50. Qc8+ {[%clk 0:00:15.3]} 50... Qf8 {[%clk
0:00:39.2]} 51. Qc4+ {[%clk 0:00:12.6]} 51... Qf7 {[%clk 0:00:38.1]} 52. Qg4+
{[%clk 0:00:09.9]} 52... Qg7 {[%clk 0:00:37.2]} 53. Qc4+ {[%clk 0:00:06.8]}
53... Qf7 {[%clk 0:00:36.4]} 54. Qc8+ {[%clk 0:00:04.7]} 54... Qf8 {[%clk
0:00:35.7]} 55. Qc4+ {[%clk 0:00:01.4]} 55... Qf7 {[%clk 0:00:35.1]} 1/2-1/2

[Event "Live Chess"]
[Site "Chess.com"]
[Date "2023.05.21"]
[Round "-"]
[White "WelshTiger"]
[Black "LiamBellwood"]
[Result "1-0"]
[WhiteElo "2323"]
[BlackElo "1925"]
[TimeControl "300"]
[EndTime "9:00:38 PDT"]
[Termination "WelshTiger won on time"]

1. e4 {[%clk 0:04:58.8]} 1... e6 {[%clk 0:04:59.9]} 2. Nf3 {[%clk 0:04:55.5]}
2... d5 {[%clk 0:04:59.8]} 3. e5 {[%clk 0:04:55.1]} 3... c5 {[%clk 0:04:59]} 4.
b4 {[%clk 0:04:54.6]} 4... c4 {[%clk 0:04:57]} 5. a3 {[%clk 0:04:48.3]} 5... a5
{[%clk 0:04:56.2]} 6. bxa5 {[%clk 0:04:31.7]} 6... Nc6 {[%clk 0:04:53.8]} 7. d4
{[%clk 0:04:28.1]} 7... Qxa5+ {[%clk 0:04:49]} 8. Bd2 {[%clk 0:04:25.5]} 8...
Bb4 {[%clk 0:04:26]} 9. Be2 {[%clk 0:04:13.9]} 9... Nh6 {[%clk 0:04:20]} 10. O-O
{[%clk 0:04:10]} 10... Bxd2 {[%clk 0:04:19.1]} 11. Nbxd2 {[%clk 0:04:07.9]}
11... Nf5 {[%clk 0:04:10.2]} 12. Nb1 {[%clk 0:03:28.2]} 12... Bd7 {[%clk
0:04:03.2]} 13. g4 {[%clk 0:03:25.1]} 13... Nh6 {[%clk 0:04:00.5]} 14. h3 {[%clk
0:03:23.8]} 14... O-O {[%clk 0:03:55.1]} 15. Nbd2 {[%clk 0:03:20.5]} 15... Qc3
{[%clk 0:03:43.9]} 16. Rb1 {[%clk 0:03:11.9]} 16... Ra7 {[%clk 0:03:19.3]} 17.
Kg2 {[%clk 0:02:10]} 17... Nxd4 {[%clk 0:03:06.5]} 18. Ne4 {[%clk 0:02:01.5]}
18... Qxc2 {[%clk 0:02:48.1]} 19. Qxd4 {[%clk 0:01:38.1]} 19... dxe4 {[%clk
0:02:32.7]} 20. Nd2 {[%clk 0:01:26.5]} 20... Bc6 {[%clk 0:02:22.2]} 21. Kg1
{[%clk 0:01:25.1]} 21... Raa8 {[%clk 0:02:03.2]} 22. Rfc1 {[%clk 0:01:23.9]}
22... Qa4 {[%clk 0:01:58.1]} 23. Nxc4 {[%clk 0:01:23.1]} 23... Rfd8 {[%clk
0:01:48.4]} 24. Qc5 {[%clk 0:01:12.8]} 24... Bd5 {[%clk 0:01:27.9]} 25. Rb4
{[%clk 0:01:11.2]} 25... Qa7 {[%clk 0:01:26.3]} 26. Nb6 {[%clk 0:01:09.8]} 26...
Rab8 {[%clk 0:01:17.5]} 27. a4 {[%clk 0:01:04.8]} 27... Bc6 {[%clk 0:00:54.3]}
28. a5 {[%clk 0:01:02.9]} 28... g6 {[%clk 0:00:46.4]} 29. Rd1 {[%clk 0:00:42.6]}
29... Rxd1+ {[%clk 0:00:44.8]} 30. Bxd1 {[%clk 0:00:41.4]} 30... Rd8 {[%clk
0:00:43.7]} 31. Rd4 {[%clk 0:00:36.7]} 31... Rxd4 {[%clk 0:00:40.4]} 32. Qxd4
{[%clk 0:00:35.8]} 32... Bd5 {[%clk 0:00:39.9]} 33. Qc5 {[%clk 0:00:32.8]} 33...
Qa6 {[%clk 0:00:34.1]} 34. Qc8+ {[%clk 0:00:30.2]} 34... Kg7 {[%clk 0:00:31.5]}
35. Nd7 {[%clk 0:00:29.9]} 1-0

[Event "Live Chess"]
[Site "Chess.com"]
[Date "2023.05.21"]
[Round "-"]
[White "educatedlad"]
[Black "VicLemon"]
[Result "0-1"]
[WhiteElo "1607"]
[BlackElo "1479"]
[TimeControl "300"]
[EndTime "9:00:45 PDT"]
[Termination "VicLemon won by checkmate"]

1. c3 {[%clk 0:04:56.8]} 1... e5 {[%clk 0:04:57.6]} 2. Qb3 {[%clk 0:04:56.7]}
2... Bc5 {[%clk 0:04:45.3]} 3. Nf3 {[%clk 0:04:54.5]} 3... d6 {[%clk 0:04:42.1]}
4. d4 {[%clk 0:04:51.1]} 4... exd4 {[%clk 0:04:26.2]} 5. cxd4 {[%clk 0:04:51]}
5... Bb6 {[%clk 0:04:23.8]} 6. e4 {[%clk 0:04:46.7]} 6... Nf6 {[%clk 0:04:19.6]}
7. Bc4 {[%clk 0:04:43.7]} 7... O-O {[%clk 0:04:17.5]} 8. O-O {[%clk 0:04:40.6]}
8... Nc6 {[%clk 0:04:12.6]} 9. Ng5 {[%clk 0:04:38.8]} 9... Nxd4 {[%clk
0:04:08.4]} 10. Bxf7+ {[%clk 0:04:36.5]} 10... Kh8 {[%clk 0:04:03.1]} 11. Qc4
{[%clk 0:04:29]} 11... Qe7 {[%clk 0:03:41.8]} 12. Nc3 {[%clk 0:04:13]} 12... h6
{[%clk 0:03:05.5]} 13. Nd5 {[%clk 0:03:53.3]} 13... Nxd5 {[%clk 0:02:56.9]} 14.
Qxd5 {[%clk 0:03:43.6]} 14... hxg5 {[%clk 0:02:50.2]} 15. Be3 {[%clk 0:03:33.6]}
15... Ne2+ {[%clk 0:02:43.5]} 16. Kh1 {[%clk 0:03:31.5]} 16... Qxf7 {[%clk
0:02:36.6]} 17. Qxg5 {[%clk 0:03:29.7]} 17... Bxe3 {[%clk 0:02:31.1]} 18. Qxe3
{[%clk 0:03:26.9]} 18... Nf4 {[%clk 0:02:26.4]} 19. h3 {[%clk 0:03:24.8]} 19...
Qg6 {[%clk 0:02:11.6]} 20. Rac1 {[%clk 0:03:08.4]} 20... Qxg2# {[%clk
0:02:06.6]} 0-1

[Event "Live Chess"]
[Site "Chess.com"]
[Date "2023.05.21"]
[Round "-"]
[White "PaulHumphreys"]
[Black "Duke_of_Bebington"]
[Result "1-0"]
[WhiteElo "1358"]
[BlackElo "1547"]
[TimeControl "300"]
[EndTime "9:00:45 PDT"]
[Termination "PaulHumphreys won by resignation"]

1. d4 {[%clk 0:04:58.5]} 1... d5 {[%clk 0:04:59.1]} 2. Nc3 {[%clk 0:04:57.7]}
2... c6 {[%clk 0:04:56.9]} 3. Bf4 {[%clk 0:04:56.2]} 3... Bf5 {[%clk 0:04:55.7]}
4. e3 {[%clk 0:04:52]} 4... Nf6 {[%clk 0:04:55.2]} 5. Nf3 {[%clk 0:04:50.7]}
5... Nbd7 {[%clk 0:04:54.6]} 6. Ne5 {[%clk 0:04:48.5]} 6... e6 {[%clk
0:04:53.3]} 7. Be2 {[%clk 0:04:19.1]} 7... Be7 {[%clk 0:04:51.3]} 8. g4 {[%clk
0:04:17.5]} 8... Be4 {[%clk 0:04:48]} 9. f3 {[%clk 0:04:13.2]} 9... Bg6 {[%clk
0:04:46.7]} 10. h4 {[%clk 0:04:12.1]} 10... h5 {[%clk 0:04:45.6]} 11. Nxg6
{[%clk 0:04:08.7]} 11... fxg6 {[%clk 0:04:43.9]} 12. g5 {[%clk 0:04:06]} 12...
Nh7 {[%clk 0:04:43.2]} 13. Bd3 {[%clk 0:04:00.3]} 13... O-O {[%clk 0:04:41.3]}
14. Bxg6 {[%clk 0:03:54]} 14... c5 {[%clk 0:04:35]} 15. Qd3 {[%clk 0:03:45.7]}
15... c4 {[%clk 0:04:26.7]} 16. Bxh7+ {[%clk 0:03:42.3]} 16... Kh8 {[%clk
0:04:25.7]} 17. Qg6 {[%clk 0:03:38.3]} 17... Rxf4 {[%clk 0:04:21]} 18. exf4
{[%clk 0:03:33.4]} 18... Nf8 {[%clk 0:04:20.4]} 19. Qxh5 {[%clk 0:03:26.7]}
19... Nxh7 {[%clk 0:04:19.1]} 20. g6 {[%clk 0:03:25.5]} 20... Bxh4+ {[%clk
0:04:16.1]} 21. Rxh4 {[%clk 0:03:20.8]} 21... Kg8 {[%clk 0:04:14.1]} 22. Qxh7+
{[%clk 0:03:14.9]} 22... Kf8 {[%clk 0:04:13.7]} 23. Qh8+ {[%clk 0:02:59.7]}
23... Ke7 {[%clk 0:04:12.7]} 24. Qxg7+ {[%clk 0:02:58.6]} 24... Kd6 {[%clk
0:04:11.6]} 25. Qe5+ {[%clk 0:02:55.7]} 25... Kc6 {[%clk 0:04:10.3]} 26. a4
{[%clk 0:02:50.8]} 26... Qxh4+ {[%clk 0:04:07.4]} 27. Kd2 {[%clk 0:02:44.6]}
27... Qh2+ {[%clk 0:04:06.3]} 28. Ke3 {[%clk 0:02:43.6]} 28... Re8 {[%clk
0:04:00.8]} 29. Nxd5 {[%clk 0:02:31.1]} 29... Qxc2 {[%clk 0:03:55.4]} 30. Nb4+
{[%clk 0:02:29]} 1-0

[Event "Live Chess"]
[Site "Chess.com"]
[Date "2023.05.21"]
[Round "-"]
[White "slava_ukr"]
[Black "robotking06"]
[Result "1-0"]
[WhiteElo "2347"]
[BlackElo "351"]
[TimeControl "300"]
[EndTime "9:00:49 PDT"]
[Termination "slava_ukr won by checkmate"]

1. e4 {[%clk 0:04:58.5]} 1... e5 {[%clk 0:04:58.2]} 2. Nf3 {[%clk 0:04:57.2]}
2... Nc6 {[%clk 0:04:56.1]} 3. Bc4 {[%clk 0:04:55.5]} 3... Bc5 {[%clk
0:04:53.9]} 4. b4 {[%clk 0:04:53.9]} 4... Bd4 {[%clk 0:04:51.1]} 5. c3 {[%clk
0:04:52.4]} 5... Bb6 {[%clk 0:04:40.4]} 6. a4 {[%clk 0:04:49.3]} 6... d6 {[%clk
0:04:34.9]} 7. a5 {[%clk 0:04:47.9]} 7... Bxa5 {[%clk 0:04:22.5]} 8. bxa5 {[%clk
0:04:46]} 8... Nxa5 {[%clk 0:04:21.2]} 9. Rxa5 {[%clk 0:04:43.3]} 9... b6 {[%clk
0:04:18.8]} 10. Bb5+ {[%clk 0:04:38.5]} 10... Qd7 {[%clk 0:04:17]} 11. Bxd7+
{[%clk 0:04:37.3]} 11... Bxd7 {[%clk 0:04:15.8]} 12. Ra1 {[%clk 0:04:36]} 12...
Bg4 {[%clk 0:04:11.4]} 13. h3 {[%clk 0:04:31.4]} 13... Nf6 {[%clk 0:04:10.7]}
14. hxg4 {[%clk 0:04:30.1]} 14... Kd8 {[%clk 0:04:10.2]} 15. Ng5 {[%clk
0:04:28.4]} 15... Ke8 {[%clk 0:04:09.1]} 16. Qa4+ {[%clk 0:04:26.4]} 16... Ke7
{[%clk 0:04:08.6]} 17. Qb3 {[%clk 0:04:24.1]} 17... d5 {[%clk 0:04:07.7]} 18.
exd5 {[%clk 0:04:22.5]} 18... c5 {[%clk 0:04:07.4]} 19. d6+ {[%clk 0:04:21.2]}
19... Kxd6 {[%clk 0:04:05.4]} 20. Nxf7+ {[%clk 0:04:20.3]} 20... Kc6 {[%clk
0:04:04.3]} 21. Nxh8 {[%clk 0:04:19.6]} 21... b5 {[%clk 0:04:04.2]} 22. Qe6+
{[%clk 0:04:18.1]} 22... Kc7 {[%clk 0:04:02.7]} 23. Ra6 {[%clk 0:04:15.8]} 23...
Rxh8 {[%clk 0:03:59.7]} 24. Rxa7+ {[%clk 0:04:14.2]} 24... Kd8 {[%clk
0:03:58.2]} 25. Qe7+ {[%clk 0:04:12.8]} 25... Kc8 {[%clk 0:03:55.2]} 26. Qc7#
{[%clk 0:04:12]} 1-0

[Event "Live Chess"]
[Site "Chess.com"]
[Date "2023.05.21"]
[Round "-"]
[White "alanmike75"]
[Black "domrobson"]
[Result "1-0"]
[WhiteElo "1610"]
[BlackElo "1789"]
[TimeControl "300"]
[EndTime "9:00:54 PDT"]
[Termination "alanmike75 won by resignation"]

1. e4 {[%clk 0:04:58.7]} 1... e5 {[%clk 0:04:58.8]} 2. Nf3 {[%clk 0:04:57.4]}
2... Nc6 {[%clk 0:04:57.8]} 3. d4 {[%clk 0:04:56.4]} 3... Nf6 {[%clk 0:04:55.9]}
4. d5 {[%clk 0:04:53.6]} 4... Ne7 {[%clk 0:04:50]} 5. Bd3 {[%clk 0:04:51.8]}
5... d6 {[%clk 0:04:49.7]} 6. c4 {[%clk 0:04:50.3]} 6... Bg4 {[%clk 0:04:49.1]}
7. Nc3 {[%clk 0:04:48.4]} 7... c5 {[%clk 0:04:46.2]} 8. h3 {[%clk 0:04:46.3]}
8... b6 {[%clk 0:04:45.8]} 9. hxg4 {[%clk 0:04:44]} 9... Nxg4 {[%clk 0:04:44.9]}
10. Ng5 {[%clk 0:04:29.5]} 10... Nf6 {[%clk 0:04:44.8]} 11. f4 {[%clk
0:04:25.3]} 11... h6 {[%clk 0:04:43.1]} 12. Nh3 {[%clk 0:04:23.9]} 1-0

[Event "Live Chess"]
[Site "Chess.com"]
[Date "2023.05.21"]
[Round "-"]
[White "yeetpizza74"]
[Black "CeladonFish"]
[Result "1-0"]
[WhiteElo "513"]
[BlackElo "1121"]
[TimeControl "300"]
[EndTime "9:00:56 PDT"]
[Termination "yeetpizza74 won by checkmate"]

1. e4 {[%clk 0:04:58.5]} 1... d6 {[%clk 0:04:59.2]} 2. d4 {[%clk 0:04:55.8]}
2... Nf6 {[%clk 0:04:58.6]} 3. e5 {[%clk 0:04:52]} 3... dxe5 {[%clk 0:04:56]} 4.
dxe5 {[%clk 0:04:50.8]} 4... Qxd1+ {[%clk 0:04:54.9]} 5. Kxd1 {[%clk 0:04:49.7]}
5... Nfd7 {[%clk 0:04:54.5]} 6. Nf3 {[%clk 0:04:46.1]} 6... g6 {[%clk
0:04:53.7]} 7. Bb5 {[%clk 0:04:43.5]} 7... Bg7 {[%clk 0:04:51.4]} 8. Nc3 {[%clk
0:04:40.9]} 8... c6 {[%clk 0:04:49.8]} 9. Bc4 {[%clk 0:04:38.4]} 9... O-O {[%clk
0:04:47.6]} 10. e6 {[%clk 0:04:34.7]} 10... Nb6 {[%clk 0:04:42.4]} 11. exf7+
{[%clk 0:04:33.3]} 11... Kh8 {[%clk 0:04:40.8]} 12. Ne5 {[%clk 0:04:23.9]} 12...
Bxe5 {[%clk 0:04:37.4]} 13. Bb3 {[%clk 0:04:18.4]} 13... Bf5 {[%clk 0:04:19.5]}
14. Bh6 {[%clk 0:04:15]} 14... Rxf7 {[%clk 0:03:57.8]} 15. Bxf7 {[%clk
0:04:12.3]} 15... Na4 {[%clk 0:03:53.5]} 16. Kc1 {[%clk 0:03:45.4]} 16... Na6
{[%clk 0:03:47.6]} 17. Nxa4 {[%clk 0:03:40.9]} 17... b5 {[%clk 0:03:29.6]} 18.
Nc3 {[%clk 0:03:36.8]} 18... Rd8 {[%clk 0:03:28.1]} 19. Rd1 {[%clk 0:03:33.6]}
19... Rxd1+ {[%clk 0:03:17.6]} 20. Kxd1 {[%clk 0:03:32.4]} 20... Nb4 {[%clk
0:03:16]} 21. Ne2 {[%clk 0:03:10.4]} 21... Nxc2 {[%clk 0:03:08.7]} 22. Rc1
{[%clk 0:03:03.8]} 22... Bxb2 {[%clk 0:03:05.6]} 23. Rb1 {[%clk 0:02:51]} 23...
Ne3+ {[%clk 0:03:01.7]} 24. Kd2 {[%clk 0:02:48.1]} 24... Bxb1 {[%clk 0:02:59]}
25. Kxe3 {[%clk 0:02:33.2]} 25... Bg7 {[%clk 0:02:55.1]} 26. Bxg7+ {[%clk
0:02:30.2]} 26... Kxg7 {[%clk 0:02:54.1]} 27. Bb3 {[%clk 0:02:26.9]} 27... Kf6
{[%clk 0:02:51.8]} 28. Nc3 {[%clk 0:02:25]} 28... Bf5 {[%clk 0:02:47.3]} 29. Kd2
{[%clk 0:02:21]} 29... e6 {[%clk 0:02:44.6]} 30. Bc2 {[%clk 0:02:18.9]} 30...
Bxc2 {[%clk 0:02:42.4]} 31. Kxc2 {[%clk 0:02:17.4]} 31... Ke5 {[%clk 0:02:39.4]}
32. Kb3 {[%clk 0:02:16.3]} 32... a5 {[%clk 0:02:31.5]} 33. a4 {[%clk 0:02:08.1]}
33... b4 {[%clk 0:02:27]} 34. Kc4 {[%clk 0:02:04.4]} 34... Kd6 {[%clk
0:02:20.3]} 35. Ne4+ {[%clk 0:02:01.7]} 35... Ke5 {[%clk 0:02:18.3]} 36. Nc5
{[%clk 0:01:56.3]} 36... Kf4 {[%clk 0:02:13.4]} 37. Nxe6+ {[%clk 0:01:52.7]}
37... Ke5 {[%clk 0:02:11.9]} 38. Ng5 {[%clk 0:01:47.4]} 38... h5 {[%clk
0:02:06.9]} 39. Nf3+ {[%clk 0:01:44.7]} 39... Ke4 {[%clk 0:02:04.5]} 40. Nd4
{[%clk 0:01:42.9]} 40... g5 {[%clk 0:01:58.9]} 41. Nxc6 {[%clk 0:01:41.5]} 41...
g4 {[%clk 0:01:54.3]} 42. Nxa5 {[%clk 0:01:39.9]} 42... b3 {[%clk 0:01:53.8]}
43. Kxb3 {[%clk 0:01:38.8]} 43... Kd5 {[%clk 0:01:52.4]} 44. Nc4 {[%clk
0:01:37.4]} 44... Kd4 {[%clk 0:01:51.8]} 45. a5 {[%clk 0:01:36.1]} 45... Kd3
{[%clk 0:01:51.4]} 46. a6 {[%clk 0:01:35.5]} 46... Ke2 {[%clk 0:01:50.9]} 47. f4
{[%clk 0:01:32.6]} 47... gxf3 {[%clk 0:01:48.8]} 48. gxf3 {[%clk 0:01:32.2]}
48... Kxf3 {[%clk 0:01:48.4]} 49. a7 {[%clk 0:01:30.4]} 49... Kg2 {[%clk
0:01:44]} 50. a8=Q+ {[%clk 0:01:26.5]} 50... Kh3 {[%clk 0:01:43.3]} 51. Qf3+
{[%clk 0:01:15.9]} 51... Kh4 {[%clk 0:01:42]} 52. Qg3# {[%clk 0:01:10.6]} 1-0

[Event "Live Chess"]
[Site "Chess.com"]
[Date "2023.05.21"]
[Round "-"]
[White "Conradical12"]
[Black "Rusty_Bridges"]
[Result "0-1"]
[WhiteElo "1508"]
[BlackElo "1538"]
[TimeControl "300"]
[EndTime "9:01:08 PDT"]
[Termination "Rusty_Bridges won by resignation"]

1. e4 {[%clk 0:04:58.6]} 1... d6 {[%clk 0:04:58]} 2. Nf3 {[%clk 0:04:58.1]} 2...
Nf6 {[%clk 0:04:55.7]} 3. Nc3 {[%clk 0:04:56.2]} 3... Nbd7 {[%clk 0:04:54.7]} 4.
Bc4 {[%clk 0:04:53.7]} 4... h6 {[%clk 0:04:52.7]} 5. O-O {[%clk 0:04:52.5]} 5...
e5 {[%clk 0:04:50]} 6. d3 {[%clk 0:04:51.8]} 6... Be7 {[%clk 0:04:48.2]} 7. Be3
{[%clk 0:04:50.8]} 7... g5 {[%clk 0:04:47.3]} 8. Qd2 {[%clk 0:04:50]} 8... Nf8
{[%clk 0:04:46.3]} 9. Rae1 {[%clk 0:04:47.2]} 9... Ng6 {[%clk 0:04:45.3]} 10. d4
{[%clk 0:04:46]} 10... c6 {[%clk 0:04:40.8]} 11. dxe5 {[%clk 0:04:44.7]} 11...
Nxe5 {[%clk 0:04:35.9]} 12. Nxe5 {[%clk 0:04:43.3]} 12... dxe5 {[%clk
0:04:35.1]} 13. Qxd8+ {[%clk 0:04:42.2]} 13... Bxd8 {[%clk 0:04:30.5]} 14. Bc5
{[%clk 0:04:40.6]} 14... Be7 {[%clk 0:04:22.7]} 15. Bxe7 {[%clk 0:04:39]} 15...
Kxe7 {[%clk 0:04:21.7]} 16. Rd1 {[%clk 0:04:38.6]} 16... Be6 {[%clk 0:04:11.3]}
17. Bxe6 {[%clk 0:04:36.9]} 17... Kxe6 {[%clk 0:04:10.3]} 18. b4 {[%clk
0:04:36.3]} 18... Rhd8 {[%clk 0:04:07.1]} 19. b5 {[%clk 0:04:35.1]} 19... c5
{[%clk 0:04:01.8]} 20. b6 {[%clk 0:04:33.9]} 20... axb6 {[%clk 0:03:55.1]} 21.
Nb5 {[%clk 0:04:32.4]} 21... Rac8 {[%clk 0:03:47.6]} 22. Rxd8 {[%clk 0:04:29]}
22... Rxd8 {[%clk 0:03:45.7]} 23. Nc7+ {[%clk 0:04:28.4]} 23... Ke7 {[%clk
0:03:41.1]} 24. g3 {[%clk 0:04:24.4]} 24... Nxe4 {[%clk 0:03:32.6]} 25. f4
{[%clk 0:04:22.6]} 25... Rd7 {[%clk 0:03:18]} 26. Nb5 {[%clk 0:04:09.5]} 26...
Nd2 {[%clk 0:02:56.8]} 27. Rf2 {[%clk 0:04:06.3]} 27... e4 {[%clk 0:02:51.1]}
28. fxg5 {[%clk 0:04:02.9]} 28... hxg5 {[%clk 0:02:48.7]} 29. Re2 {[%clk
0:04:01]} 29... f5 {[%clk 0:02:45.7]} 30. Kf2 {[%clk 0:03:58.3]} 30... Nf3
{[%clk 0:02:34.6]} 31. g4 {[%clk 0:03:54.9]} 31... Rd2 {[%clk 0:02:23.5]} 32.
Rxd2 {[%clk 0:03:50.3]} 32... Nxd2 {[%clk 0:02:22.1]} 33. gxf5 {[%clk
0:03:49.4]} 33... Kf6 {[%clk 0:02:21]} 34. Nd6 {[%clk 0:03:46.9]} 34... Nf3
{[%clk 0:02:14.3]} 35. h3 {[%clk 0:03:42.7]} 35... Nd4 {[%clk 0:02:10.3]} 36.
Nxe4+ {[%clk 0:03:37.8]} 36... Kxf5 {[%clk 0:02:09.3]} 37. Nd6+ {[%clk
0:03:37.4]} 37... Kf4 {[%clk 0:02:06.8]} 38. c3 {[%clk 0:03:36]} 38... Ke5
{[%clk 0:01:40.4]} 39. Nxb7 {[%clk 0:03:33.2]} 39... Nb5 {[%clk 0:01:37.5]} 40.
c4 {[%clk 0:03:32.1]} 40... Na3 {[%clk 0:01:33.9]} 41. Nd8 {[%clk 0:03:28.6]}
41... Nxc4 {[%clk 0:01:30.5]} 42. Nf7+ {[%clk 0:03:27.5]} 42... Kf5 {[%clk
0:01:27.8]} 43. a4 {[%clk 0:03:24.9]} 43... Nb2 {[%clk 0:01:25.6]} 44. Ke3
{[%clk 0:03:23.5]} 44... Nxa4 {[%clk 0:01:24.6]} 45. Kd3 {[%clk 0:03:21.4]}
45... b5 {[%clk 0:01:15.4]} 46. Nd6+ {[%clk 0:03:20]} 46... Kf4 {[%clk
0:01:12.8]} 47. Nxb5 {[%clk 0:03:19.2]} 47... Kg3 {[%clk 0:01:11.6]} 48. Nc3
{[%clk 0:03:16.3]} 48... Nxc3 {[%clk 0:01:09]} 49. Kxc3 {[%clk 0:03:15.3]} 49...
Kxh3 {[%clk 0:01:07.8]} 50. Kc4 {[%clk 0:03:15.2]} 50... g4 {[%clk 0:01:06.9]}
51. Kxc5 {[%clk 0:03:15.1]} 51... g3 {[%clk 0:01:06.4]} 52. Kd4 {[%clk 0:03:15]}
52... g2 {[%clk 0:01:05.9]} 53. Ke3 {[%clk 0:03:14.9]} 53... g1=Q+ {[%clk
0:01:04.9]} 0-1